bitfinex-derivatives/quotes_SOLF0:USTF0_20260310
["timestamp","ask_amount","ask_price","bid_price","bid_amount"]
[1773165871573,6.18564393,87.911,87.86,3.30947186]
[1773165871967,6.18564393,87.909,87.86,3.30947186]
[1773165872367,6.18564393,87.909,87.863,10.241]
[1773165873663,6.18564393,87.909,87.821,21.10047545]
[1773165873664,6.18564393,87.92,87.872,0.6995522]
[1773165874265,6.18564393,87.92,87.877,10.24]
[1773165875070,6.18564393,87.92,87.88,3.30947186]
[1773165876471,6.18564393,87.92,87.882,10.239]
[1773165878876,6.18564393,87.92,87.889,10.238]
[1773165879277,6.18564393,87.935,87.89,4.02017476]
[1773165879476,6.18564393,87.959,87.903,10.236]
[1773165880076,6.18564393,87.951,87.903,10.236]
[1773165880877,6.18564393,87.948,87.895,10.237]
[1773165881977,6.18564393,87.948,87.9,3.30947186]
[1773165882373,3.30947186,87.95,87.9,3.30947186]
[1773165882374,6.18564393,87.944,87.9,3.30947186]
[1773165882574,6.18564393,87.944,87.895,10.237]
[1773165883379,6.18564393,87.939,87.887,10.238]
[1773165884181,6.18564393,87.939,87.894,10.238]
[1773165884680,6.18564393,87.939,87.894,11.03013584]
[1773165884982,6.18564393,87.939,87.901,10.237]
[1773165886379,6.18564393,87.939,87.894,0.79213584]
[1773165886583,6.18564393,87.939,87.89,3.30947186]
[1773165886883,6.18564393,87.939,87.891,0.71869096]
[1773165887082,6.18564393,87.937,87.891,0.71869096]
[1773165887579,5.83264253,87.952,87.901,0.71429933]
[1773165888380,16.06701787,87.945,87.903,10.237]
[1773165888983,5.83501787,87.944,87.903,10.237]
[1773165891379,5.83600525,87.939,87.89,3.30947186]
[1773165891579,5.83600525,87.939,87.889,10.238]
[1773165891884,5.83600525,87.939,87.88,3.30947186]
[1773165891885,5.83600525,87.939,87.89,4.02427337]
[1773165893182,5.8333707,87.932,87.89,3.30947186]
[1773165894082,16.05912297,87.925,87.886,10.238]
[1773165894289,5.82512297,87.919,87.863,0.73657426]
[1773165894489,5.82512297,87.919,87.87,3.30947186]
[1773165895080,5.82512297,87.919,87.87,4.04606952]
[1773165895486,5.82512339,87.939,87.881,0.73659766]
[1773165896086,5.82799519,87.925,87.883,10.239]
[1773165900383,5.82799519,87.925,87.89,13.54747186]
[1773165900585,5.82799519,87.925,87.87,3.30947186]
[1773165900891,5.74633395,87.919,87.867,0.89431126]
[1773165901085,5.74633422,87.918,87.86,3.30947186]
[1773165901292,5.74633422,87.918,87.809,27.89584464]
[1773165901293,5.74633422,87.899,87.841,0.89433471]
[1773165901493,5.74633422,87.899,87.85,3.30947186]
[1773165902488,5.71563024,87.897,87.852,10.242]
[1773165903089,20.465,87.941,87.841,0.89433471]
[1773165903090,5.71563039,87.889,87.843,10.243]
[1773165903391,5.71563039,87.889,87.841,0.89433471]
[1773165903991,5.71563039,87.889,87.843,10.243]
[1773165904192,5.71563039,87.889,87.841,0.89433471]
[1773165904397,5.71563039,87.889,87.85,3.30947186]
[1773165904792,5.71563039,87.889,87.841,0.89433471]
[1773165904988,5.71563039,87.889,87.849,10.243]
[1773165905392,5.71563039,87.889,87.841,0.89433471]
[1773165905790,5.71563039,87.889,87.844,10.243]
[1773165906396,5.71563039,87.889,87.851,10.243]
[1773165906891,5.71563039,87.889,87.841,0.89433471]
[1773165907689,5.66801348,87.869,87.814,14.1105969]
[1773165907891,5.66801348,87.859,87.81,1.05098383]
[1773165908797,5.66801348,87.859,87.81,11.29798383]
[1773165908996,5.66801348,87.859,87.81,1.05098383]
[1773165909393,5.66801348,87.859,87.811,1.06038713]
[1773165910498,5.66801348,87.859,87.82,10.246]
[1773165911797,5.66801348,87.859,87.812,10.247]
[1773165912198,3.31424632,87.85,87.812,10.247]
[1773165912499,5.66801348,87.859,87.812,10.247]
[1773165912699,5.70590051,87.839,87.79,3.31424632]
[1773165913598,3.31424632,87.83,87.792,10.249]
[1773165913902,5.70590051,87.839,87.792,10.249]
[1773165914793,5.70590051,87.839,87.754,21.12629453]
[1773165914794,5.70590051,87.839,87.8,3.31424632]
[1773165914993,5.70590051,87.839,87.791,1.0049789]
[1773165915703,5.70590051,87.839,87.806,10.248]
[1773165917907,5.68380866,87.853,87.812,10.247]
[1773165918105,3.31424632,87.85,87.804,1.01968274]
[1773165918296,5.68380866,87.853,87.804,1.01968274]
[1773165919496,5.68380866,87.853,87.82,10.246]
[1773165920202,5.68380866,87.853,87.804,1.01968274]
[1773165920403,3.31424632,87.84,87.791,1.19458749]
[1773165921001,5.99460438,87.849,87.791,1.19458749]
[1773165921706,5.99460438,87.849,87.801,1.19465249]
[1773165922210,5.99460438,87.839,87.79,3.31424632]
[1773165922712,5.99460438,87.829,87.792,10.249]
[1773165923111,5.99460438,87.829,87.753,21.12629453]
[1773165923112,5.99460438,87.829,87.77,3.31424632]
[1773165923309,5.99460438,87.827,87.78,3.31424632]
[1773165923510,5.99460438,87.839,87.79,4.51542398]
[1773165923911,20.478,87.883,87.781,1.209858]
[1773165923912,5.99460438,87.83,87.781,1.209858]
[1773165925117,5.99460438,87.829,87.785,10.25]
[1773165925319,20.478,87.883,87.761,1.9817147]
[1773165925320,5.99460438,87.843,87.791,1.20985935]
[1773165926510,5.99460438,87.843,87.799,10.249]
[1773165927110,5.99460438,87.843,87.806,10.248]
[1773165927310,5.99460438,87.857,87.811,1.05052731]
[1773165927711,5.99460438,87.857,87.8,3.31424632]
[1773165927907,5.99460438,87.857,87.797,1.05052731]
[1773165927908,5.99460438,87.849,87.797,1.05052731]
[1773165928113,5.99460438,87.849,87.812,10.247]
[1773165928307,5.99460438,87.849,87.8,3.31424632]
[1773165928512,5.99460438,87.849,87.791,0.95151832]
[1773165929114,5.99460438,87.846,87.803,10.248]
[1773165929318,5.99460438,87.839,87.791,0.95151832]
[1773165931022,5.99460438,87.839,87.793,10.249]
[1773165931617,5.99460438,87.849,87.8,4.35967326]
[1773165931817,5.99460438,87.839,87.772,1.04549937]
[1773165932015,5.99460438,87.839,87.78,4.43764655]
[1773165932321,5.99460438,87.835,87.79,3.31424632]
[1773165933521,5.99460438,87.835,87.8,10.248]
[1773165934116,5.99460438,87.835,87.78,3.31424632]
[1773165934621,10.244,87.843,87.791,1.22171608]
[1773165934822,9.3088507,87.85,87.791,1.22171608]
[1773165934823,5.99460438,87.842,87.791,1.22171608]
[1773165936124,5.99460438,87.838,87.798,10.249]
[1773165936314,5.99460438,87.838,87.791,1.22171608]
[1773165937025,5.99460438,87.838,87.763,20.506]
[1773165937026,5.99460438,87.819,87.77,3.31424632]
[1773165937418,5.99460438,87.819,87.783,10.25]
[1773165937618,5.99460438,87.839,87.771,1.22566461]
[1773165937825,5.99460438,87.839,87.79,1.22572488]
[1773165938023,5.99460438,87.839,87.78,3.31424632]
[1773165938425,5.99460438,87.839,87.78,4.5279122]
[1773165938921,5.99460438,87.839,87.781,1.2137857]
[1773165939326,5.99460438,87.839,87.796,10.249]
[1773165939731,5.99460438,87.839,87.795,1.21383677]
[1773165939925,5.99460438,87.839,87.8,3.31424632]
[1773165940125,5.99460438,87.839,87.79,3.31424632]
[1773165940826,5.99460438,87.839,87.794,10.249]
[1773165941233,5.99460438,87.839,87.79,3.31424632]
[1773165941922,10.42363281,87.904,87.762,20.506]
[1773165941923,5.99460438,87.859,87.8,3.31424632]
[1773165942625,5.99460438,87.851,87.806,10.248]
[1773165943129,5.99460438,87.851,87.801,1.1044059]
[1773165943332,5.99460438,87.851,87.78,20.502]
[1773165943333,5.99460438,87.851,87.811,1.1044059]
[1773165943528,5.99460438,87.851,87.82,10.246]
[1773165943831,5.99460438,87.851,87.811,1.1044059]
[1773165944233,5.99460438,87.851,87.819,10.246]
[1773165944824,5.99460438,87.869,87.828,11.40253081]
[1773165945033,5.99460438,87.879,87.829,1.15753081]
[1773165945229,195.94628404,87.941,87.841,1.15753081]
[1773165945230,5.99460438,87.893,87.841,1.15753081]
[1773165945424,5.99460438,87.893,87.849,10.243]
[1773165945630,5.99460438,87.908,87.86,3.31424632]
[1773165945834,5.99460438,87.908,87.87,3.31424632]
[1773165946038,5.99460438,87.923,87.881,10.239]
[1773165946237,5.99460438,87.923,87.89,3.31424632]
[1773165946741,5.99460438,87.946,87.9,3.31424632]
[1773165947235,5.78930332,87.938,87.88,3.31424632]
[1773165947433,5.78930332,87.929,87.88,3.31424632]
[1773165947636,5.78930332,87.929,87.89,3.31424632]
[1773165948037,5.78930332,87.929,87.88,3.31424632]
[1773165948438,5.78930332,87.929,87.87,3.31424632]
[1773165949232,3.31424632,87.93,87.87,3.31424632]
[1773165949233,6.18061291,87.926,87.87,3.31424632]
[1773165950031,6.18061291,87.926,87.872,10.24]
[1773165950340,6.18061291,87.926,87.88,3.31424632]
[1773165950932,6.18061291,87.942,87.89,3.31424632]
[1773165952440,6.18061291,87.939,87.89,3.31424632]
[1773165953838,3.31424632,87.93,87.88,3.31424632]
[1773165954039,6.18061291,87.929,87.88,3.31424632]
[1773165955545,6.18061291,87.927,87.88,3.31424632]
[1773165957435,6.18061291,87.927,87.881,10.239]
[1773165960344,10.233,87.937,87.881,10.239]
[1773165960345,10.233,87.937,87.89,3.31424632]
[1773165960544,16.41361291,87.937,87.89,3.31424632]
[1773165960742,6.18061291,87.936,87.89,3.31424632]
[1773165960944,3.31424632,87.93,87.88,3.31424632]
[1773165961243,6.18061291,87.929,87.88,3.31424632]
[1773165961938,6.18061291,87.916,87.87,3.31424632]
[1773165962646,6.18061291,87.916,87.868,1.0763692]
[1773165962848,6.18061291,87.912,87.86,3.31424632]
[1773165963243,6.18061291,87.907,87.862,10.241]
[1773165964040,6.18061291,87.921,87.87,3.31424632]
[1773165964245,6.18061291,87.921,87.871,1.0717288]
[1773165964445,6.18061291,87.921,87.88,3.31424632]
[1773165964641,6.18061291,87.938,87.891,1.0717288]
[1773165964842,6.18061291,87.938,87.89,3.31424632]
[1773165964843,6.18061291,87.958,87.92,3.31424632]
[1773165965738,10.229,87.972,87.922,10.234]
[1773165965950,6.18061291,87.977,87.93,3.31424632]
[1773165967148,6.18061291,87.966,87.93,3.31424632]
[1773165967748,6.18061291,87.966,87.92,3.30796054]
[1773165967949,6.18061291,87.965,87.92,3.30796054]
[1773165968142,6.18061291,87.965,87.92,4.0355019]
[1773165968339,6.18061291,87.965,87.93,3.30796054]
[1773165968838,6.18061291,87.965,87.92,0.72754136]
[1773165969038,6.18061291,87.965,87.92,4.0355019]
[1773165970350,6.18061291,87.965,87.882,20.478]
[1773165970351,6.18061291,87.985,87.93,4.04204904]
[1773165970545,6.18061291,87.985,87.95,3.30796054]
[1773165970759,6.18061291,87.999,87.96,3.30796054]
[1773165971250,6.18061291,87.999,87.955,0.73414533]
[1773165971842,3.30796054,88.01,87.95,3.30796054]
[1773165971843,6.18061291,87.997,87.95,3.30796054]
[1773165972248,3.30796054,87.99,87.94,3.30796054]
[1773165972444,6.18061291,87.986,87.94,3.30796054]
[1773165972647,3.30796054,87.98,87.93,3.30796054]
[1773165972848,6.18061291,87.969,87.91,3.30796054]
[1773165973250,6.18061291,87.959,87.907,0.70357299]
[1773165974852,6.18061291,87.957,87.899,10.237]
[1773165975158,6.18061291,87.957,87.891,0.71784413]
[1773165975351,6.18061291,87.952,87.906,10.236]
[1773165975546,6.18061291,87.952,87.874,0.71791151]
[1773165975857,6.18061291,87.949,87.874,0.71791151]
[1773165976457,6.18061291,87.932,87.861,0.69969037]
[1773165977455,6.18061291,87.932,87.884,10.239]
[1773165978350,16.41161291,87.949,87.876,0.69975979]
[1773165978556,6.18061291,87.948,87.876,0.69975979]
[1773165979056,6.18061291,87.948,87.9,10.237]
[1773165980356,6.18061291,87.948,87.84,8.86399735]
[1773165980357,6.18061291,87.948,87.875,0.74050119]
[1773165981058,6.17720276,87.947,87.891,10.238]
[1773165982061,6.17720276,87.947,87.898,10.237]
[1773165982262,6.17720276,87.947,87.891,0.73816479]
[1773165982962,6.17720276,87.947,87.907,10.236]
[1773165985059,6.17720276,87.945,87.865,0.73796508]
[1773165986467,6.17720276,87.934,87.883,10.239]
[1773165988467,6.17720276,87.931,87.883,10.239]
[1773165988659,6.17720276,87.931,87.872,10.24]
[1773165989471,6.17720276,87.931,87.865,0.73796508]
[1773165990473,6.17720276,87.928,87.877,10.24]
[1773165991372,16.41120276,87.926,87.877,10.24]
[1773165991571,6.17720276,87.925,87.877,10.24]
[1773165992171,6.17720276,87.925,87.883,10.239]
[1773165992469,8.86399735,87.95,87.86,8.86399735]
[1773165992470,16.40920276,87.941,87.89,10.238]
[1773165992666,6.17720276,87.94,87.87,14.05414661]
[1773165992872,6.17720276,87.94,87.869,0.68798188]
[1773165993071,6.17720276,87.911,87.861,10.241]
[1773165993567,6.17720276,87.911,87.854,0.68803961]
[1773165993772,6.17720276,87.911,87.861,10.241]
[1773165995469,6.17720276,87.908,87.861,10.241]
[1773165997178,6.17720276,87.904,87.861,10.241]
[1773165997373,3.31311456,87.9,87.861,10.241]
[1773165997974,9.49031732,87.9,87.861,10.241]
[1773165999579,6.17720276,87.9,87.861,10.241]
[1773166000882,16.41420276,87.899,87.854,0.68803961]
[1773166001084,6.17720276,87.898,87.84,4.1122411]
[1773166001279,6.17720276,87.898,87.855,10.242]
[1773166001476,6.17720276,87.898,87.817,21.12629453]
[1773166001477,6.17720276,87.898,87.83,3.31311456]
[1773166001778,6.17720276,87.869,87.82,3.31311456]
[1773166001987,6.17720276,87.859,87.816,0.79919525]
[1773166002888,6.17720276,87.859,87.816,11.04619525]
[1773166003581,6.17720276,87.859,87.796,0.81303979]
[1773166003788,3.31311456,87.84,87.79,3.31311456]
[1773166003992,6.17720276,87.839,87.781,0.91454452]
[1773166004589,6.17720276,87.829,87.78,10.251]
[1773166004791,9.49031732,87.82,87.78,10.251]
[1773166004992,6.17720276,87.82,87.78,10.251]
[1773166005189,9.49031732,87.82,87.771,10.252]
[1773166005392,6.17720276,87.819,87.771,10.252]
[1773166005791,6.17720276,87.819,87.779,10.251]
[1773166006990,6.17720276,87.819,87.766,0.91454452]
[1773166007696,5.7557399,87.843,87.768,0.87812615]
[1773166009191,5.7800475,87.838,87.785,10.25]
[1773166009592,5.7800475,87.838,87.768,0.87812615]
[1773166010399,5.84261595,87.827,87.776,10.251]
[1773166010695,20.48,87.877,87.777,0.83980485]
[1773166010696,5.84261595,87.846,87.777,0.83980485]
[1773166012396,8.89208159,87.86,87.793,10.249]
[1773166012397,5.84261595,87.844,87.793,10.249]
[1773166012597,5.84261595,87.844,87.777,0.83980485]
[1773166012997,5.84261595,87.833,87.784,10.25]
[1773166013494,5.84261595,87.833,87.784,0.84086541]
[1773166014396,5.84261595,87.833,87.791,10.249]
[1773166014591,5.84261595,87.833,87.784,0.84086541]
[1773166014796,5.84261595,87.833,87.761,0.84460621]
[1773166015193,5.84261595,87.833,87.774,0.84463676]
[1773166015594,5.84261595,87.833,87.76,0.84463676]
[1773166015902,5.84261595,87.817,87.76,0.84463676]
[1773166016898,5.84261595,87.817,87.774,10.252]
[1773166019504,5.84261595,87.815,87.744,0.83612088]
[1773166019705,5.84261595,87.831,87.744,0.83612088]
[1773166020004,5.84261595,87.828,87.765,0.83611961]
[1773166020607,5.84261595,87.828,87.784,10.25]
[1773166021004,5.84261595,87.828,87.765,0.83611961]
[1773166021800,5.84261595,87.826,87.777,10.251]
[1773166022200,5.84261595,87.826,87.76,8.89208159]
[1773166022201,8.89208159,87.86,87.778,0.72446559]
[1773166022507,5.84261595,87.859,87.778,0.72446559]
[1773166023503,5.84261595,87.847,87.8,10.248]
[1773166023807,5.84261595,87.847,87.791,0.72443704]
[1773166025899,5.84261595,87.847,87.804,10.248]
[1773166027309,5.84261595,87.859,87.812,10.247]
[1773166027808,20.475,87.898,87.812,10.247]
[1773166027809,5.84261595,87.855,87.812,10.247]
[1773166028007,5.87060136,87.869,87.806,0.72424165]
[1773166028207,5.87060136,87.859,87.806,0.72424165]
[1773166028605,5.84261595,87.839,87.78,3.31785789]
[1773166028908,5.84261595,87.809,87.75,3.31785789]
[1773166029109,3.31785789,87.8,87.75,3.31785789]
[1773166029604,3.32112438,87.8,87.75,3.32112438]
[1773166030508,3.32112438,87.8,87.755,10.254]
[1773166030807,9.16374033,87.8,87.755,10.254]
[1773166031709,5.84261595,87.8,87.755,10.254]
[1773166032005,5.84261595,87.797,87.746,10.255]
[1773166032307,5.84261595,87.797,87.711,4.01825994]
[1773166032608,5.84261595,87.797,87.755,10.254]
[1773166033606,5.84261595,87.797,87.748,4.01825994]
[1773166033801,5.84261595,87.797,87.733,3.98913584]
[1773166034406,5.84261595,87.795,87.737,10.256]
[1773166034711,5.84261595,87.795,87.737,4.01505435]
[1773166036007,5.84261595,87.795,87.745,10.255]
[1773166036308,5.84261595,87.795,87.737,4.01505435]
[1773166037111,5.84261595,87.795,87.753,10.254]
[1773166038113,5.84261595,87.795,87.712,4.22154223]
[1773166038611,5.84261595,87.753,87.7,10.26]
[1773166038813,5.84261595,87.753,87.698,4.22154223]
[1773166039406,5.84261595,87.753,87.682,4.1656836]
[1773166040007,5.84261595,87.753,87.698,10.26]
[1773166040208,5.84261595,87.753,87.682,4.1656836]
[1773166040704,5.5784329,87.751,87.697,10.261]
[1773166040912,5.5784329,87.751,87.682,4.1656836]
[1773166041309,5.5784329,87.751,87.705,10.26]
[1773166041909,5.5784329,87.751,87.713,10.259]
[1773166042414,5.5784329,87.772,87.713,10.259]
[1773166042615,5.5784329,87.772,87.71,4.05875729]
[1773166042616,5.5784329,87.772,87.722,10.258]
[1773166043014,5.5784329,87.772,87.67,10.87955943]
[1773166043015,5.5784329,87.762,87.694,4.03109285]
[1773166044016,5.5784329,87.762,87.712,10.259]
[1773166044616,5.5784329,87.762,87.719,10.258]
[1773166044917,5.5784329,87.762,87.708,3.85412355]
[1773166046008,10.251,87.778,87.708,3.85412355]
[1773166046216,5.5784329,87.78,87.734,10.256]
[1773166046411,5.5784329,87.78,87.729,3.6526553]
[1773166046617,5.5784329,87.78,87.741,10.255]
[1773166048412,5.5784329,87.78,87.749,10.254]
[1773166049615,5.5784329,87.78,87.739,10.256]
[1773166049820,5.5784329,87.78,87.713,3.56348388]
[1773166050719,8.89586788,87.8,87.719,10.258]
[1773166050720,5.5784329,87.769,87.719,10.258]
[1773166051618,5.5784329,87.769,87.726,10.257]
[1773166052516,20.495,87.813,87.671,75.72325329]
[1773166052517,5.5784329,87.766,87.696,3.3761998]
[1773166053122,8.89586788,87.78,87.696,3.3761998]
[1773166053123,5.5784329,87.752,87.702,10.26]
[1773166053614,5.5784329,87.749,87.709,10.259]
[1773166055812,5.5784329,87.749,87.696,3.3761998]
[1773166055813,5.5784329,87.764,87.71,3.33866608]
[1773166056213,10.253,87.762,87.717,10.258]
[1773166056423,5.5784329,87.761,87.717,10.258]
[1773166056819,5.5784329,87.761,87.71,3.33866608]
[1773166058221,5.5784329,87.761,87.714,10.259]
[1773166058421,5.5784329,87.761,87.71,3.33866608]
[1773166059224,5.5784329,87.761,87.731,10.257]
[1773166059926,5.5784329,87.761,87.723,10.257]
[1773166060722,5.5784329,87.761,87.73,10.257]
[1773166061119,5.5784329,87.761,87.722,10.258]
[1773166061721,5.5784329,87.761,87.715,10.258]
[1773166062625,5.5784329,87.759,87.706,10.26]
[1773166062824,5.5784329,87.759,87.695,3.10642358]
[1773166063422,5.5784329,87.754,87.695,3.10642358]
[1773166064325,5.5784329,87.754,87.711,10.259]
[1773166064525,5.5784329,87.751,87.711,10.259]
[1773166064726,5.5784329,87.751,87.695,3.10642358]
[1773166065427,15.8334329,87.743,87.704,10.26]
[1773166065927,5.5784329,87.742,87.695,3.10642358]
[1773166066227,8.90577452,87.77,87.671,3.00014861]
[1773166066228,5.5784329,87.736,87.671,3.00014861]
[1773166067324,5.5784329,87.736,87.69,10.261]
[1773166067529,5.5784329,87.736,87.684,2.96034019]
[1773166068129,5.44419233,87.75,87.704,2.98138411]
[1773166070327,5.44419233,87.75,87.718,10.258]
[1773166071229,5.44419233,87.75,87.711,10.259]
[1773166072636,5.44419233,87.75,87.718,10.258]
[1773166073325,5.19491733,87.765,87.704,2.98138411]
[1773166074327,5.19491733,87.765,87.722,10.258]
[1773166074532,5.19491733,87.765,87.704,2.98138411]
[1773166074929,5.19491733,87.756,87.714,10.259]
[1773166078345,5.19491733,87.754,87.714,10.259]
[1773166079545,5.19491733,87.751,87.704,2.98138411]
[1773166079743,5.19491733,87.749,87.696,14.0868882]
[1773166079948,5.19491733,87.749,87.694,14.0868882]
[1773166080145,5.19491733,87.749,87.701,2.87136716]
[1773166080351,5.19491733,87.764,87.719,10.258]
[1773166080543,3.32479443,87.76,87.719,10.258]
[1773166081147,5.19491733,87.757,87.719,10.258]
[1773166081742,5.19491733,87.757,87.714,2.87136716]
[1773166081944,5.19491733,87.774,87.721,2.83692487]
[1773166083348,5.19491733,87.772,87.721,2.83692487]
[1773166083550,5.19491733,87.769,87.721,2.83692487]
[1773166084353,5.19491733,87.769,87.724,10.257]
[1773166085050,5.19491733,87.769,87.73,6.26408793]
[1773166085252,5.19491733,87.769,87.68,34.2]
[1773166085253,3.32479443,87.74,87.701,5.54314151]
[1773166085444,3.32479443,87.75,87.701,5.54314151]
[1773166086154,10.255,87.749,87.707,10.259]
[1773166086654,5.19491733,87.729,87.673,26.5383948]
[1773166086853,5.19491733,87.729,87.674,5.54314151]
[1773166087355,5.19491733,87.729,87.619,34.98590158]
[1773166087356,3.32479443,87.7,87.659,20.99525329]
[1773166087561,3.32479443,87.7,87.65,8.86793594]
[1773166087854,8.50919101,87.7,87.651,10.266]
[1773166088054,8.50919101,87.7,87.65,5.54314151]
[1773166088257,8.50919101,87.7,87.65,15.80914151]
[1773166088457,8.50919101,87.7,87.651,5.54314151]
[1773166089659,5.18439658,87.7,87.651,5.54314151]
[1773166090354,5.19491733,87.698,87.651,5.54314151]
[1773166091960,5.19491733,87.712,87.66,15.80814151]
[1773166092457,5.19491733,87.712,87.62,1.98482295]
[1773166092458,5.19491733,87.729,87.669,5.54314151]
[1773166094360,5.19491733,87.729,87.69,10.261]
[1773166095161,5.19491733,87.747,87.69,10.261]
[1773166096253,5.19491733,87.747,87.69,15.80414151]
[1773166096458,5.19491733,87.747,87.696,5.54314151]
[1773166098361,5.19491733,87.746,87.696,5.54314151]
[1773166099768,13.95570839,87.78,87.711,5.32714628]
[1773166100064,5.03920023,87.78,87.711,5.32714628]
[1773166100761,5.03920023,87.779,87.713,5.32714628]
[1773166102063,5.03920023,87.794,87.738,5.32714628]
[1773166102865,5.03920023,87.793,87.741,10.255]
[1773166103156,5.03920023,87.793,87.738,5.32714628]
[1773166104368,5.03920023,87.788,87.738,5.32714628]
[1773166104666,5.03920023,87.788,87.711,5.32714628]
[1773166104861,5.03920023,87.757,87.701,10.26]
[1773166105059,5.03920023,87.757,87.696,5.32714628]
[1773166105757,10.255,87.747,87.697,10.26]
[1773166105956,10.255,87.747,87.662,20.99525329]
[1773166105957,5.03920023,87.757,87.698,5.32714628]
[1773166107068,5.03920023,87.755,87.698,5.32714628]
[1773166107770,5.03920023,87.755,87.661,20.99525329]
[1773166107771,5.03920023,87.755,87.7,5.32714628]
[1773166109066,15.29320023,87.754,87.703,10.26]
[1773166109271,5.03920023,87.753,87.703,10.26]
[1773166109674,3.32502377,87.75,87.703,10.26]
[1773166111166,5.03920023,87.739,87.694,10.261]
[1773166111373,3.32502377,87.73,87.684,5.32714628]
[1773166112369,3.32502377,87.73,87.686,5.32714628]
[1773166112771,3.32502377,87.75,87.691,5.32714628]
[1773166113170,10.255,87.749,87.703,10.26]
[1773166114177,8.22108043,87.798,87.655,20.99525329]
[1773166114178,3.32502377,87.74,87.696,5.32714628]
[1773166114376,5.03920023,87.739,87.696,5.32714628]
[1773166114674,13.88136181,87.801,87.641,20.535]
[1773166114675,5.03920023,87.719,87.676,10.263]
[1773166114879,3.32502377,87.7,87.643,5.32714628]
[1773166115070,3.32502377,87.69,87.643,5.32714628]
[1773166116375,3.32502377,87.69,87.649,10.266]
[1773166117584,5.03920023,87.709,87.652,5.32714628]
[1773166118479,5.03920023,87.709,87.665,10.264]
[1773166118680,5.03920023,87.709,87.652,5.32714628]
[1773166120380,10.259,87.708,87.656,10.265]
[1773166120882,5.03920023,87.709,87.652,5.32714628]
[1773166121581,5.03920023,87.709,87.654,5.32714628]
[1773166121879,5.03920023,87.729,87.654,5.32714628]
[1773166122580,5.03920023,87.717,87.668,10.264]
[1773166123982,5.03920023,87.715,87.668,10.264]
[1773166124180,5.03920023,87.715,87.654,5.32714628]
[1773166124181,5.03920023,87.715,87.66,10.265]
[1773166125379,5.03920023,87.705,87.66,10.265]
[1773166126679,5.03920023,87.694,87.65,10.266]
[1773166127686,5.03920023,87.694,87.656,10.265]
[1773166128185,4.83263365,87.709,87.662,10.265]
[1773166128685,4.83263365,87.709,87.654,10.265]
[1773166128686,10.26,87.706,87.654,10.265]
[1773166129488,15.07984473,87.706,87.654,10.265]
[1773166129988,4.81984473,87.706,87.655,4.93410151]
[1773166130186,4.81984473,87.722,87.655,4.93410151]
[1773166131588,8.91556625,87.73,87.655,4.93410151]
[1773166131589,4.81984473,87.715,87.67,10.264]
[1773166133688,4.81984473,87.712,87.67,10.264]
[1773166134283,4.81984473,87.709,87.655,4.93410151]
[1773166135084,10.26,87.706,87.661,10.265]
[1773166136281,15.07984473,87.706,87.661,10.265]
[1773166137090,15.07984473,87.706,87.667,10.264]
[1773166137286,4.81984473,87.706,87.667,10.264]
[1773166138191,4.81984473,87.706,87.657,10.265]
[1773166139090,10.26,87.703,87.663,10.264]
[1773166139586,4.81984473,87.699,87.655,4.93410151]
[1773166140185,4.81984473,87.689,87.639,4.93410151]
[1773166140394,3.32831059,87.68,87.639,4.93410151]
[1773166140687,4.81984473,87.689,87.64,8.2624121]
[1773166140889,4.81984473,87.699,87.653,4.93410151]
[1773166141491,10.26,87.705,87.655,4.93410151]
[1773166141795,3.32831059,87.71,87.655,4.93410151]
[1773166141983,8.14815532,87.71,87.655,4.93410151]
[1773166142491,4.81984473,87.707,87.656,10.265]
[1773166142692,3.32831059,87.7,87.656,10.265]
[1773166143090,3.32831059,87.7,87.656,15.19910151]
[1773166144488,3.32831059,87.7,87.66,4.93410151]
[1773166144693,3.32831059,87.71,87.66,4.93410151]
[1773166145895,3.32831059,87.71,87.66,8.2624121]
[1773166146098,3.32831059,87.71,87.661,4.93410151]
[1773166146597,3.32831059,87.71,87.67,10.264]
[1773166147294,10.258,87.717,87.674,4.93410151]
[1773166147493,8.2144267,87.757,87.674,4.93410151]
[1773166147494,3.32831059,87.73,87.674,4.93410151]
[1773166148093,4.81984473,87.719,87.678,10.263]
[1773166148288,4.81984473,87.699,87.641,4.93410151]
[1773166148489,20.512,87.739,87.641,4.93410151]
[1773166148490,4.81984473,87.689,87.641,4.93410151]
[1773166149599,10.262,87.687,87.641,4.93410151]
[1773166149799,4.81984473,87.679,87.627,4.93410151]
[1773166150199,4.81984473,87.679,87.638,10.267]
[1773166151003,4.81984473,87.679,87.642,10.267]